bitfinex/quotes_BTCUSD_20250102
["timestamp","ask_amount","ask_price","bid_price","bid_amount"]
[1735856418106,0.68444656,96921.0,96914.0,8.55e-05]
[1735856418577,0.68444656,96921.0,96920.0,0.0148357]
[1735856421733,0.69817344,96921.0,96920.0,0.0148357]
[1735856428581,0.47118712,96921.0,96920.0,0.1431357]
[1735856430132,0.57018712,96921.0,96920.0,0.1431357]
[1735856430320,0.47018712,96921.0,96920.0,0.1431357]
[1735856430562,0.47118712,96921.0,96920.0,0.1491357]
[1735856430737,0.47018712,96921.0,96920.0,0.1451357]
[1735856430984,0.47118712,96921.0,96920.0,0.1511357]
[1735856431192,0.57118712,96921.0,96920.0,0.1491357]
[1735856431593,0.57218712,96921.0,96920.0,0.1511357]
[1735856431862,0.57118712,96921.0,96920.0,0.1451357]
[1735856432186,0.57118712,96921.0,96920.0,0.1521357]
[1735856432344,0.57118712,96921.0,96920.0,0.1571357]
[1735856432547,0.47118712,96921.0,96920.0,0.1571357]
[1735856432748,0.57118712,96921.0,96920.0,0.1571357]
[1735856432935,0.47118712,96921.0,96920.0,0.1571357]
[1735856434327,0.47018712,96921.0,96920.0,0.0198357]
[1735856434535,0.47118712,96921.0,96920.0,0.0258357]
[1735856434982,0.57118712,96921.0,96920.0,0.0258357]
[1735856435679,0.47118712,96921.0,96920.0,0.0258357]
[1735856435879,0.57118712,96921.0,96920.0,0.0258357]
[1735856445998,0.69817344,96921.0,96920.0,0.0258357]
[1735856448893,0.83624045,96921.0,96920.0,0.0258357]
[1735856449225,0.479345,96906.0,96905.0,0.0922701]
[1735856449427,0.68333132,96906.0,96905.0,0.0922701]
[1735856450621,0.68333132,96906.0,96905.0,0.0942701]
[1735856451140,0.68333132,96906.0,96905.0,0.0922701]
[1735856451312,0.66133132,96906.0,96905.0,0.0942701]
[1735856451689,0.67317503,96906.0,96905.0,0.0942701]
[1735856451873,0.67417503,96906.0,96905.0,0.0942701]
[1735856452474,0.8583067,96906.0,96905.0,0.0942701]
[1735856452676,0.8573067,96906.0,96905.0,0.0942701]
[1735856452881,0.8573067,96906.0,96905.0,0.0922701]
[1735856454164,0.8573067,96906.0,96905.0,0.1714556]
[1735856454521,0.8583067,96906.0,96905.0,0.1714556]
[1735856454724,0.70857059,96906.0,96905.0,0.1714556]
[1735856455934,0.57018871,96906.0,96905.0,0.1714556]
[1735856456792,0.47018871,96906.0,96905.0,0.1714556]
[1735856456995,0.57018871,96906.0,96905.0,0.1714556]
[1735856460014,0.557293,96906.0,96905.0,0.2205556]
[1735856460222,0.457293,96906.0,96905.0,0.2205556]
[1735856460631,0.357385,96906.0,96905.0,0.2205556]
[1735856461019,0.356385,96906.0,96905.0,0.2205556]
[1735856461429,0.357385,96906.0,96905.0,0.2205556]
[1735856462075,0.356385,96906.0,96905.0,0.2205556]
[1735856462857,0.357385,96906.0,96905.0,0.2205556]
[1735856463850,0.358385,96906.0,96905.0,0.2225556]
[1735856464052,0.357385,96906.0,96905.0,0.2225556]
[1735856464466,0.357385,96906.0,96905.0,0.2255556]
[1735856464861,0.359385,96906.0,96905.0,0.2255556]
[1735856465062,0.358385,96906.0,96905.0,0.2205556]
[1735856465264,0.467385,96906.0,96905.0,0.2215556]
[1735856465622,0.458385,96906.0,96905.0,0.2205556]
[1735856466086,0.465385,96906.0,96905.0,0.2215556]
[1735856466287,0.472556,96906.0,96905.0,0.2215556]
[1735856467063,0.372556,96906.0,96905.0,0.2215556]
[1735856467498,0.472556,96906.0,96905.0,0.2215556]
[1735856467692,0.372556,96906.0,96905.0,0.2215556]
[1735856467904,0.472556,96906.0,96905.0,0.2215556]
[1735856468311,0.372556,96906.0,96905.0,0.2215556]
[1735856468512,0.472556,96906.0,96905.0,0.2215556]
[1735856471563,0.372556,96906.0,96905.0,0.2215556]
[1735856473521,0.372516,96906.0,96905.0,0.2215556]
[1735856474317,0.472516,96906.0,96905.0,0.0933556]
[1735856474517,0.572424,96906.0,96905.0,0.0933556]
[1735856475303,0.563424,96906.0,96905.0,0.0923556]
[1735856475698,0.556424,96906.0,96905.0,0.0923556]
[1735856476123,0.559424,96906.0,96905.0,0.0923556]
[1735856476725,0.556424,96906.0,96905.0,0.0923556]
[1735856477125,0.557424,96906.0,96905.0,0.0923556]
[1735856478331,0.556424,96906.0,96905.0,0.0923556]
[1735856479991,0.557424,96906.0,96905.0,0.0923556]
[1735856482984,0.69580588,96906.0,96905.0,0.0923556]
[1735856483393,0.69480588,96906.0,96905.0,0.0923556]
[1735856483815,0.69580588,96906.0,96905.0,0.0923556]
[1735856484024,0.69480588,96906.0,96905.0,0.0923556]
[1735856484203,0.556424,96906.0,96905.0,0.0923556]
[1735856484369,0.557424,96906.0,96905.0,0.0923556]
[1735856484571,0.556424,96906.0,96905.0,0.0923556]
[1735856485398,0.557424,96906.0,96905.0,0.0923556]
[1735856487651,0.64963974,96906.0,96905.0,0.0923556]
[1735856491226,0.557424,96906.0,96905.0,0.0923556]
[1735856493582,0.69574708,96906.0,96905.0,0.0923556]
[1735856497046,0.557424,96906.0,96905.0,0.0923556]
[1735856498081,0.74155567,96906.0,96905.0,0.0923556]
[1735856501343,0.557424,96906.0,96905.0,0.0923556]
[1735856503904,0.79071032,96906.0,96905.0,0.0923556]
[1735856505173,0.60632532,96906.0,96893.0,8.55e-05]
[1735856505350,0.15,96893.0,96869.0,0.075373]
[1735856505583,0.206458,96872.0,96869.0,0.075373]
[1735856505752,0.206458,96872.0,96870.0,0.00323055]
[1735856506565,0.206458,96872.0,96869.0,0.075373]
[1735856506740,0.41306314,96872.0,96869.0,0.075373]
[1735856507708,0.456462,96870.0,96869.0,0.075373]
[1735856510501,0.457462,96870.0,96869.0,0.075373]
[1735856511478,0.458462,96870.0,96869.0,0.075373]
[1735856512370,0.458462,96870.0,96869.0,0.0754586]
[1735856517705,0.458462,96870.0,96869.0,8.56e-05]
[1735856518128,0.457462,96870.0,96869.0,8.56e-05]
[1735856518474,0.55637,96870.0,96869.0,8.56e-05]
[1735856519463,0.55737,96870.0,96869.0,8.56e-05]
[1735856520247,0.55837,96870.0,96869.0,8.56e-05]
[1735856520430,0.55737,96870.0,96869.0,8.56e-05]
[1735856520861,0.55837,96870.0,96869.0,8.56e-05]
[1735856521447,0.66235632,96870.0,96869.0,8.56e-05]
[1735856522186,0.66135632,96870.0,96869.0,8.56e-05]
[1735856522568,0.71115632,96870.0,96869.0,8.56e-05]
[1735856522830,0.372908,96869.0,96862.0,0.07389212]
[1735856523070,0.662585,96863.0,96862.0,0.01194712]
[1735856523268,0.86657132,96863.0,96862.0,0.01194712]
[1735856523469,0.92632616,96863.0,96862.0,0.01194712]
[1735856523673,0.94520611,96863.0,96862.0,1.2e-07]
[1735856523980,0.97645829,96863.0,96862.0,1.2e-07]
[1735856524128,0.099908,96851.0,96850.0,1.2e-07]
[1735856524356,0.88732193,96851.0,96850.0,1.2e-07]
[1735856524947,0.86289632,96851.0,96850.0,1.2e-07]
[1735856525339,0.88732193,96851.0,96850.0,1.2e-07]
[1735856525696,0.86289632,96851.0,96850.0,1.2e-07]
[1735856525895,0.93262193,96851.0,96850.0,1.2e-07]
[1735856526038,0.90819632,96851.0,96850.0,1.2e-07]
[1735856526243,0.93262193,96851.0,96850.0,1.2e-07]
[1735856527277,0.66039632,96851.0,96850.0,1.2e-07]
[1735856527476,0.55641,96851.0,96850.0,1.2e-07]
[1735856528730,0.56857939,96851.0,96850.0,1.2e-07]
[1735856529084,0.56957939,96851.0,96850.0,1.2e-07]
[1735856529273,0.46957939,96851.0,96850.0,1.2e-07]
[1735856529480,0.56957939,96851.0,96850.0,1.2e-07]
[1735856529884,0.67356571,96851.0,96850.0,1.2e-07]
[1735856530951,0.40741,96851.0,96850.0,1.2e-07]
[1735856531150,0.207502,96851.0,96850.0,1.2e-07]
[1735856531347,0.307502,96851.0,96850.0,1.2e-07]
[1735856531554,0.357502,96851.0,96850.0,1.2e-07]
[1735856531731,0.151,96851.0,96850.0,1.2e-07]
[1735856531941,0.001,96851.0,96850.0,1.2e-07]
[1735856533741,0.15,96855.0,96850.0,1.2e-07]
[1735856533936,0.15,96855.0,96850.0,0.00200012]
[1735856534157,0.00096,96851.0,96850.0,0.00200012]
[1735856534706,0.00096,96851.0,96850.0,0.00400012]
[1735856534932,0.15,96855.0,96850.0,0.00200012]
[1735856535081,0.151,96855.0,96850.0,0.00900012]
[1735856535403,0.15,96855.0,96850.0,0.00200012]
[1735856535769,0.001,96851.0,96850.0,0.00800012]
[1735856536251,0.200908,96851.0,96850.0,0.01000012]
[1735856536865,0.200908,96851.0,96850.0,0.01008572]
[1735856537086,0.200908,96851.0,96850.0,0.00208572]
[1735856537087,0.199908,96851.0,96850.0,0.00208572]
[1735856537665,0.199908,96851.0,96850.0,8.572e-05]
[1735856537879,0.199908,96851.0,96850.0,0.00208572]
[1735856538085,0.200908,96851.0,96850.0,0.00408572]
[1735856538699,0.21266374,96851.0,96850.0,0.00408572]
[1735856541972,0.36266374,96851.0,96850.0,0.00408572]
[1735856542172,0.350908,96851.0,96850.0,0.00408572]
[1735856542960,0.251,96851.0,96850.0,0.08218572]
[1735856543192,0.151,96851.0,96850.0,0.08218572]
[1735856543855,0.001,96851.0,96850.0,0.23127204]
[1735856544610,0.001,96851.0,96850.0,0.22927204]
[1735856544820,0.15,96860.0,96850.0,0.22927204]
[1735856545028,0.15,96860.0,96851.0,0.10398632]
[1735856547490,0.159,96860.0,96851.0,0.10498632]
[1735856547779,0.012,96860.0,96851.0,0.10498632]
[1735856548121,0.009,96860.0,96851.0,0.10498632]
[1735856548323,0.009,96860.0,96853.0,0.0814]
[1735856548649,0.017,96860.0,96854.0,0.10398632]
[1735856549204,0.009,96860.0,96854.0,0.10398632]
[1735856549556,0.15,96866.0,96854.0,0.10398632]
[1735856549772,0.15,96864.0,96854.0,0.10398632]
[1735856549898,0.009,96860.0,96854.0,0.10398632]
[1735856550116,0.15,96864.0,96854.0,0.10398632]
[1735856550315,0.0001712,96860.0,96854.0,0.10398632]
[1735856550640,0.0091712,96860.0,96855.0,0.206493]
[1735856550885,0.0091712,96860.0,96857.0,0.0814]
[1735856551213,0.0171712,96860.0,96858.0,0.10398632]
[1735856551584,0.0091712,96860.0,96858.0,0.10398632]
[1735856552142,0.0171712,96860.0,96858.0,0.10398632]
[1735856552472,0.0091712,96860.0,96858.0,0.10398632]
[1735856552674,0.0001712,96860.0,96859.0,0.206485]
[1735856552877,0.0091712,96860.0,96859.0,0.43517132]
[1735856553289,0.0001712,96860.0,96859.0,0.43517132]
[1735856553482,0.0091712,96860.0,96859.0,1.93517132]
[1735856553704,0.0181712,96860.0,96859.0,1.93517132]
[1735856554021,0.0091712,96860.0,96859.0,1.93517132]
[1735856554184,0.0091712,96860.0,96859.0,1.93617132]
[1735856554387,0.0091712,96860.0,96859.0,1.93517132]
[1735856554642,0.0161712,96860.0,96859.0,1.93517132]
[1735856555039,0.0161712,96860.0,96859.0,1.95826332]
[1735856555630,0.0251712,96860.0,96859.0,1.95926332]
[1735856556843,0.0161712,96860.0,96859.0,1.95926332]
[1735856557053,0.0001712,96860.0,96859.0,1.95826332]
[1735856557281,0.0131712,96860.0,96859.0,1.96026332]
[1735856557498,0.0051712,96860.0,96859.0,1.98040276]
[1735856558021,0.0001712,96860.0,96859.0,1.97940276]
[1735856558192,0.0021712,96860.0,96859.0,1.97940276]
[1735856558395,0.0001712,96870.0,96869.0,0.331256]
[1735856558592,0.0001712,96870.0,96869.0,0.45824232]
[1735856559034,0.0001712,96870.0,96869.0,1.95824232]
[1735856559244,0.00031834,96872.0,96871.0,0.147792]
[1735856559467,0.000171,96906.0,96899.0,0.206399]
[1735856559663,0.000171,96906.0,96893.0,9.2e-05]
[1735856559664,0.00031855,96906.0,96901.0,0.206396]
[1735856559862,0.00031855,96906.0,96902.0,1.60398632]
[1735856560905,0.00131855,96906.0,96902.0,1.60398632]
[1735856561540,0.00131855,96906.0,96902.0,1.60698632]
[1735856562565,0.00031855,96906.0,96902.0,1.60698632]
[1735856563162,0.00131855,96906.0,96902.0,1.61098632]
[1735856563363,0.00031855,96906.0,96902.0,1.60398632]
[1735856563567,0.00631855,96906.0,96902.0,1.60498632]
[1735856563763,0.01231855,96906.0,96902.0,1.60598632]
[1735856564008,0.01231855,96906.0,96902.0,0.10598632]
[1735856565383,0.01231855,96906.0,96903.0,1.5]
[1735856565703,0.01231855,96906.0,96904.0,0.10398632]
[1735856566113,0.15,96905.0,96904.0,0.10398632]
[1735856566247,0.15,96905.0,96902.0,0.001]
[1735856566650,0.356389,96904.0,96903.0,0.001]
[1735856567061,0.15,96904.0,96892.0,0.0759]
[1735856567260,0.206407,96896.0,96893.0,0.10398632]
[1735856568892,0.2064,96899.0,96888.0,0.2055]
[1735856569061,0.15,96898.0,96889.0,0.10398632]
[1735856569265,0.206419,96890.0,96889.0,0.10398632]
[1735856570441,0.213419,96890.0,96889.0,0.10498632]
[1735856571434,0.219419,96890.0,96889.0,0.10498632]
[1735856572014,0.219419,96890.0,96889.0,1.60498632]
[1735856572684,0.219419,96890.0,96889.0,0.001]
[1735856573473,0.369419,96890.0,96889.0,0.001]
[1735856573679,0.695327,96890.0,96889.0,0.001]
[1735856574897,0.689327,96890.0,96889.0,0.001]
[1735856575247,0.694327,96890.0,96889.0,0.001]
[1735856576192,0.15,96889.0,96888.0,0.2055]
[1735856576393,0.25,96889.0,96888.0,0.2055]
[1735856577519,0.251,96889.0,96888.0,0.2055]
[1735856579830,0.25,96889.0,96888.0,0.2055]
[1735856580071,0.25,96889.0,96888.0,0.2065]
[1735856580322,0.251,96889.0,96888.0,0.2105]
[1735856581317,0.251,96889.0,96888.0,0.2095]
[1735856581515,0.251,96889.0,96888.0,0.2105]
[1735856582211,0.350908,96889.0,96888.0,0.2105]
[1735856582447,0.349908,96889.0,96888.0,0.2065]
[1735856582854,0.350908,96889.0,96888.0,0.189858]
[1735856583258,0.349908,96889.0,96888.0,0.164216]
[1735856583487,0.349908,96889.0,96888.0,0.165216]
[1735856583666,0.350908,96889.0,96888.0,0.169216]
[1735856586029,0.350908,96889.0,96872.0,8.54e-05]
[1735856586030,0.349908,96873.0,96872.0,8.54e-05]
[1735856586259,0.58320796,96873.0,96872.0,8.54e-05]
[1735856586840,0.58320796,96873.0,96850.0,8.572e-05]
[1735856586841,0.15,96872.0,96850.0,8.572e-05]
[1735856587052,0.4565,96852.0,96850.0,8.572e-05]
[1735856587228,0.556408,96852.0,96850.0,8.572e-05]
[1735856587405,0.5565044,96852.0,96850.0,8.572e-05]
[1735856590243,0.70689072,96852.0,96850.0,8.572e-05]
[1735856590414,0.70789072,96852.0,96850.0,8.572e-05]
[1735856591206,0.71925602,96852.0,96850.0,8.572e-05]
[1735856592041,0.349908,96851.0,96850.0,2.2e-07]
[1735856592247,0.556438,96838.0,96823.0,8.55e-05]
[1735856592520,0.74152432,96838.0,96823.0,8.55e-05]
[1735856592904,0.74152432,96838.0,96820.0,0.03483914]
[1735856592905,0.349908,96821.0,96820.0,0.03483914]
[1735856593114,0.53229432,96821.0,96820.0,0.03483914]
[1735856593326,0.53229432,96821.0,96791.0,0.0002]
[1735856593327,0.099908,96809.0,96791.0,0.0002]
[1735856593539,0.449908,96801.0,96791.0,0.0002]
[1735856593763,0.449908,96801.0,96754.0,8.55e-05]
[1735856593764,0.199908,96778.0,96777.0,8.5e-07]
[1735856593976,0.506566,96778.0,96777.0,8.5e-07]
[1735856594192,0.52562566,96778.0,96777.0,8.5e-07]
[1735856594408,0.62961198,96778.0,96777.0,8.5e-07]
[1735856594634,0.67961198,96778.0,96777.0,8.5e-07]
[1735856594844,0.66055232,96778.0,96777.0,8.5e-07]
[1735856595055,0.66051232,96778.0,96777.0,8.5e-07]
[1735856595883,0.48208108,96778.0,96777.0,8.5e-07]
[1735856596091,0.48308108,96778.0,96777.0,8.5e-07]
[1735856596297,0.52809476,96778.0,96777.0,8.5e-07]
[1735856596507,0.52909476,96778.0,96777.0,8.5e-07]
[1735856596709,0.53009476,96778.0,96777.0,8.5e-07]
[1735856596926,0.52909476,96778.0,96777.0,8.5e-07]
[1735856597134,0.52809476,96778.0,96777.0,8.5e-07]
[1735856597339,0.42918676,96778.0,96777.0,8.5e-07]
[1735856597542,0.52909476,96778.0,96777.0,8.5e-07]
[1735856597959,0.22252876,96778.0,96777.0,8.5e-07]
[1735856598167,0.32243676,96778.0,96777.0,8.5e-07]
[1735856598373,0.22252876,96778.0,96777.0,8.5e-07]
[1735856598584,0.22152876,96778.0,96777.0,8.5e-07]
[1735856598916,0.22252876,96778.0,96777.0,8.5e-07]
[1735856599350,0.22152876,96778.0,96777.0,8.5e-07]
[1735856599561,0.151,96778.0,96777.0,8.5e-07]
[1735856599770,0.099908,96791.0,96777.0,8.5e-07]
[1735856599941,0.001,96778.0,96777.0,8.5e-07]
[1735856600165,0.002,96778.0,96777.0,8.5e-07]
[1735856600397,0.249908,96791.0,96777.0,8.5e-07]
[1735856600606,0.07152876,96787.0,96777.0,8.5e-07]
[1735856600815,0.001,96778.0,96777.0,8.635e-05]
[1735856601030,0.001171,96778.0,96777.0,8.635e-05]
[1735856601448,0.000171,96778.0,96777.0,0.02308635]
[1735856601857,0.003171,96778.0,96777.0,0.02308635]
[1735856602063,0.000171,96778.0,96777.0,0.02308635]
[1735856602578,0.009171,96778.0,96777.0,0.02408635]
[1735856602843,0.000171,96778.0,96777.0,0.02308635]
[1735856603023,0.009171,96778.0,96777.0,0.12807267]
[1735856603265,0.009171,96778.0,96777.0,0.12707267]
[1735856603523,0.018171,96778.0,96777.0,0.12807267]
[1735856603748,0.026171,96778.0,96777.0,0.12907267]
[1735856604213,0.018171,96778.0,96777.0,0.12807267]
[1735856604455,0.025171,96778.0,96777.0,0.12907267]
[1735856604687,0.016171,96778.0,96777.0,0.12907267]
[1735856604936,0.007171,96778.0,96777.0,0.12807267]
[1735856605208,0.014171,96778.0,96777.0,0.12907267]
[1735856605869,0.014171,96778.0,96777.0,0.20697267]
[1735856607006,0.27589446,96874.0,96816.0,0.1]
[1735856607210,0.27589446,96874.0,96810.0,0.01615785]
[1735856607211,0.09191539,96855.0,96822.0,0.1]
[1735856607420,0.09191539,96855.0,96828.0,0.023]
[1735856607621,0.09191539,96855.0,96835.0,0.023]
[1735856607873,0.09191539,96855.0,96837.0,0.023]
[1735856608092,0.12300124,96854.0,96808.0,0.0223]
[1735856608300,0.206546,96831.0,96801.0,0.0823]
[1735856608505,0.206546,96831.0,96820.0,0.00049153]
[1735856608744,0.412342,96831.0,96820.0,0.00049153]
[1735856609161,0.206565,96822.0,96820.0,0.00049153]
[1735856609491,0.206566,96822.0,96820.0,0.00049153]
[1735856610116,0.206566,96822.0,96820.0,0.00149153]
[1735856610742,0.206549,96829.0,96820.0,0.00149153]
[1735856611155,0.206566,96822.0,96820.0,0.00149153]
[1735856611408,0.209566,96822.0,96820.0,0.00149153]
[1735856611873,0.25398632,96821.0,96820.0,0.00149153]
[1735856612079,0.25398632,96821.0,96820.0,0.00049153]
[1735856612286,0.25398632,96821.0,96820.0,0.00149153]
[1735856612741,0.25398632,96821.0,96820.0,0.00049153]
[1735856612950,0.25398632,96821.0,96820.0,0.00149153]
[1735856613368,0.25398632,96821.0,96820.0,0.00049153]
[1735856613579,0.25398632,96821.0,96820.0,0.00949153]
[1735856613580,0.25498632,96821.0,96820.0,0.00949153]
[1735856613795,0.25498632,96821.0,96820.0,0.01349153]
[1735856615362,0.25398632,96821.0,96820.0,0.00449153]
[1735856615719,0.25498632,96821.0,96820.0,0.00849153]
[1735856615953,0.25398632,96821.0,96820.0,0.00049153]
[1735856616147,0.25398632,96821.0,96820.0,0.00449153]
[1735856616394,0.25498632,96821.0,96820.0,0.00449153]
[1735856616807,0.25498632,96821.0,96820.0,0.00049153]
[1735856617024,0.25598632,96821.0,96820.0,0.00149153]
[1735856618619,0.001,96821.0,96820.0,0.00149153]
[1735856619100,0.001,96821.0,96820.0,0.00449153]
[1735856619315,0.001,96821.0,96820.0,0.00849153]
[1735856619517,0.151,96821.0,96820.0,0.00849153]
[1735856619905,0.15,96821.0,96820.0,0.00049153]
[1735856620154,0.151,96821.0,96820.0,0.00049153]
[1735856620542,0.15,96821.0,96820.0,0.00049153]
[1735856620760,0.151,96821.0,96820.0,0.00249153]
[1735856621220,0.001,96821.0,96820.0,0.00249153]
[1735856621838,0.002,96821.0,96820.0,0.00649153]
[1735856622045,0.001,96821.0,96820.0,0.00249153]
[1735856622463,0.002,96821.0,96820.0,0.00649153]
[1735856625419,0.0015,96821.0,96820.0,0.00649153]
[1735856635740,0.0015,96821.0,96820.0,0.0063935]
[1735856637041,0.0015,96821.0,96820.0,0.006479]
[1735856637342,0.001671,96821.0,96820.0,0.006479]
[1735856640885,0.25565732,96821.0,96820.0,0.006479]
[1735856641970,0.27482354,96821.0,96820.0,0.006479]
[1735856644001,0.58627087,96821.0,96820.0,0.006479]
[1735856645246,0.58627087,96821.0,96820.0,0.002479]
[1735856645247,0.56610465,96821.0,96820.0,0.002479]
[1735856645442,0.58477148,96821.0,96820.0,0.000479]
[1735856645709,0.58577148,96821.0,96820.0,0.008479]
[1735856646079,0.56660465,96821.0,96820.0,0.008479]
[1735856646302,0.56660465,96821.0,96820.0,0.004479]
[1735856646521,0.56560465,96821.0,96820.0,0.000479]
[1735856646732,0.56660465,96821.0,96820.0,0.008479]
[1735856655691,0.56656465,96821.0,96820.0,0.008479]
[1735856656298,0.56556465,96821.0,96820.0,0.004479]
[1735856656636,0.84245911,96821.0,96820.0,0.008479]
[1735856657144,0.84245911,96821.0,96820.0,0.004479]
[1735856657666,0.84245911,96821.0,96820.0,0.008479]
[1735856658097,0.84245911,96821.0,96820.0,0.004479]
[1735856658333,0.84245911,96821.0,96820.0,0.008479]
[1735856658851,0.56656465,96821.0,96820.0,0.008479]
[1735856666874,0.56556465,96821.0,96820.0,0.000479]
[1735856667253,0.56556465,96821.0,96820.0,0.005479]
[1735856667670,0.56556465,96821.0,96820.0,0.00338036]
[1735856667987,0.56556465,96821.0,96820.0,0.00238036]
[1735856669385,0.56556465,96821.0,96820.0,0.00538036]
[1735856673460,0.206641,96786.0,96785.0,0.1287]
[1735856674707,0.21213275,96786.0,96785.0,0.1287]
[1735856676044,0.22113275,96786.0,96785.0,0.1287]
[1735856676255,0.21213275,96786.0,96785.0,0.1287]
[1735856676664,0.21613275,96786.0,96785.0,0.1287]
[1735856677121,0.22213275,96786.0,96785.0,0.1287]
[1735856677318,0.21313275,96786.0,96785.0,0.1287]
[1735856677437,0.20713275,96786.0,96785.0,0.1287]
[1735856677641,0.21613275,96786.0,96785.0,0.1287]
[1735856677841,0.22313275,96786.0,96785.0,0.1287]
[1735856678103,0.22313275,96786.0,96785.0,0.0823]
[1735856684210,0.22313275,96786.0,96785.0,0.0823855]
[1735856688445,0.22263275,96786.0,96785.0,0.0823855]
[1735856689366,0.17263275,96786.0,96785.0,0.0823855]
[1735856701189,0.01649175,96786.0,96785.0,0.0823855]
[1735856701395,0.01012385,96786.0,96785.0,0.0823855]
[1735856702070,0.01012385,96786.0,96785.0,0.23367182]
[1735856702771,0.01012385,96786.0,96785.0,0.23357337]
[1735856702974,0.00312385,96786.0,96785.0,0.23357337]
[1735856703181,0.09192289,96800.0,96790.0,0.206632]
[1735856703404,0.09192289,96800.0,96790.0,0.31076546]
[1735856703650,0.09192289,96800.0,96799.0,0.276913]
[1735856703865,0.13788434,96803.0,96802.0,0.35]
[1735856704085,0.13788434,96803.0,96802.0,0.52398632]
[1735856704517,0.09199166,96808.0,96807.0,0.35]
[1735856704733,0.09199166,96808.0,96807.0,0.47698632]
[1735856705345,0.09199166,96808.0,96807.0,0.52268632]
[1735856705766,0.09199166,96808.0,96807.0,0.71008632]
[1735856705976,0.009,96808.0,96807.0,0.71108632]
[1735856706202,0.000171,96820.0,96818.0,0.1]
[1735856706466,0.000171,96820.0,96819.0,0.39175732]
[1735856708567,0.000171,96820.0,96819.0,0.41193759]
[1735856709004,0.014171,96820.0,96819.0,0.41293759]
[1735856711438,0.014171,96820.0,96819.0,0.53593759]
[1735856713802,0.014171,96820.0,96819.0,0.54687456]
[1735856715424,0.014171,96820.0,96819.0,0.59577456]
[1735856716589,0.014131,96820.0,96819.0,0.59577456]
[1735856720126,0.014131,96820.0,96819.0,0.59585996]
[1735856721685,0.005131,96820.0,96819.0,0.59485996]
[1735856722091,0.003131,96820.0,96819.0,0.59485996]
[1735856722287,0.000131,96820.0,96819.0,0.59485996]
[1735856722486,0.002131,96820.0,96819.0,0.59485996]
[1735856722721,0.005131,96820.0,96819.0,0.59485996]
[1735856723247,0.003131,96820.0,96819.0,0.59485996]
[1735856723456,0.005131,96820.0,96819.0,0.59485996]
[1735856728078,0.005131,96820.0,96819.0,0.84485996]
[1735856732368,0.005131,96820.0,96819.0,0.94485996]
[1735856733667,0.005131,96820.0,96819.0,0.94476129]
[1735856733836,0.005131,96820.0,96819.0,1.05356129]
[1735856734037,0.206492,96856.0,96841.0,0.206523]
[1735856734232,0.206484,96860.0,96842.0,0.10398632]
[1735856734451,0.206487,96858.0,96842.0,0.10398632]
[1735856735060,0.206484,96860.0,96843.0,0.206519]
[1735856735285,0.206484,96860.0,96844.0,0.10398632]
[1735856735488,0.001,96856.0,96844.0,0.10398632]
[1735856735860,0.206484,96860.0,96844.0,0.10398632]
[1735856736036,0.206487,96858.0,96844.0,0.10398632]
[1735856736230,0.0827,96859.0,96845.0,0.206515]
[1735856736434,0.002,96859.0,96846.0,0.10398632]
[1735856736636,0.206479,96862.0,96846.0,0.10398632]
[1735856737036,0.003,96859.0,96846.0,0.10398632]
[1735856737296,0.206487,96858.0,96846.0,0.10398632]
[1735856737609,0.003,96859.0,96847.0,0.12114764]
[1735856737844,0.001,96856.0,96848.0,0.10398632]
[1735856738244,0.0827,96866.0,96853.0,0.206498]
[1735856738451,0.004,96858.0,96854.0,0.10398632]
[1735856739300,0.001,96856.0,96854.0,0.10398632]
[1735856739507,0.001,96856.0,96855.0,0.306494]
[1735856739719,0.001,96856.0,96855.0,0.43348032]
[1735856739925,0.0769,96874.0,96860.0,0.206483]
[1735856740127,0.2065928,96889.0,96861.0,0.10398632]
[1735856740128,0.0824,96881.0,96861.0,0.10398632]
[1735856740353,0.0824,96881.0,96865.0,0.206471]
[1735856740551,0.0824,96881.0,96866.0,0.10398632]
[1735856740718,0.0824,96881.0,96867.0,0.1]
[1735856740924,0.0824,96881.0,96868.0,0.10398632]
[1735856741337,0.0824,96881.0,96869.0,0.206463]
[1735856741541,0.003171,96875.0,96870.0,0.10398632]
[1735856741754,0.000171,96875.0,96871.0,0.20646]
[1735856741934,0.000171,96875.0,96872.0,0.10398632]
[1735856742130,0.000171,96875.0,96873.0,0.206455]
[1735856742334,0.000171,96875.0,96874.0,0.10398632]
[1735856743118,0.007171,96875.0,96874.0,0.10398632]
[1735856743326,0.010171,96875.0,96874.0,0.10398632]
[1735856743529,0.000171,96875.0,96874.0,0.10398632]
[1735856743960,0.016171,96875.0,96874.0,0.10598632]
[1735856744825,0.016171,96875.0,96874.0,0.20598632]
[1735856747231,0.016171,96875.0,96874.0,0.40798632]
[1735856747449,0.01587176,96875.0,96874.0,0.65798632]
[1735856747670,0.0001708,96889.0,96884.0,0.412864]
[1735856747850,0.0001708,96889.0,96887.0,0.1]
[1735856748056,0.0001708,96889.0,96888.0,0.31040932]
[1735856748505,0.0001708,96889.0,96888.0,1.81040932]
[1735856749026,0.0001708,96889.0,96888.0,0.31040932]
[1735856749440,0.0061708,96889.0,96888.0,1.81140932]
[1735856750072,0.0131708,96889.0,96888.0,1.81240932]
[1735856750263,0.0131708,96889.0,96888.0,2.06130932]
[1735856750933,0.000171,96897.0,96888.0,2.06130932]
[1735856750934,0.000171,96897.0,96896.0,0.756406]
[1735856751143,0.000171,96897.0,96896.0,0.66039232]
[1735856751353,0.000171,96897.0,96896.0,0.68339232]
[1735856751690,0.000171,96897.0,96896.0,0.78339232]
[1735856751912,0.000171,96897.0,96896.0,1.00929232]
[1735856752517,0.001171,96897.0,96896.0,1.00929232]
[1735856752718,0.000171,96906.0,96903.0,0.556391]
[1735856752922,0.00066315,96904.0,96903.0,2.31371]
[1735856753124,0.00066315,96904.0,96903.0,2.28437732]
[1735856753389,0.000171,96957.0,96918.0,0.75836]
[1735856753592,0.000171,96957.0,96918.0,0.86234632]
[1735856753593,0.00031866,96919.0,96918.0,0.86234632]
[1735856753985,0.000171,96957.0,96927.0,0.30634]
[1735856754191,0.000171,96957.0,96927.0,0.45552632]
[1735856754616,0.000171,96957.0,96927.0,0.35552632]
[1735856754819,0.000171,96957.0,96927.0,0.14918632]
[1735856755025,0.000171,96957.0,96927.0,0.24918632]
[1735856755223,0.000171,96957.0,96927.0,0.26184153]
[1735856755725,0.000171,96957.0,96927.0,0.25984153]
[1735856755936,0.0755,96954.0,96927.0,0.36184153]
[1735856756889,0.206456,96953.0,96927.0,0.26184153]
[1735856757118,0.000171,96953.0,96927.0,0.26684153]
[1735856757702,0.000171,96953.0,96927.0,0.26184153]